bitfinex/quotes_BTCUSD_20220304
["timestamp","ask_amount","ask_price","bid_price","bid_amount"]
[1646406991860,0.3257977,40832.0,40830.0,0.02308]
[1646406992059,0.14507191,40832.0,40827.0,0.061281]
[1646406992303,2.37467926,40831.0,40827.0,0.061281]
[1646406992507,3.15847926,40831.0,40827.0,0.061281]
[1646406992707,0.1,40830.0,40827.0,0.12255885]
[1646406992907,0.1,40830.0,40828.0,0.0070354]
[1646406993106,0.30194381,40830.0,40828.0,0.0070354]
[1646406993308,0.1,40830.0,40828.0,0.0070354]
[1646406993506,0.4,40830.0,40828.0,0.0070354]
[1646406993708,0.4,40830.0,40826.0,1.664e-05]
[1646406993709,1.39359983,40828.0,40826.0,1.664e-05]
[1646406993906,0.3452,40827.0,40826.0,1.664e-05]
[1646406994111,0.65257136,40827.0,40826.0,1.664e-05]
[1646406994306,0.7386,40825.0,40813.0,0.001]
[1646406994508,0.7386,40820.0,40813.0,0.001]
[1646406994706,1.22374114,40820.0,40813.0,0.001]
[1646406994907,1.22374114,40820.0,40810.0,0.001]
[1646406994908,0.03994114,40816.0,40810.0,0.001]
[1646406995109,0.122616,40817.0,40810.0,0.001]
[1646406995307,0.78480788,40816.0,40813.0,0.12261136]
[1646406995509,0.7386,40815.0,40813.0,0.12261136]
[1646406995709,0.7386,40813.0,40796.0,0.002]
[1646406995910,0.35,40810.0,40796.0,0.002]
[1646406996161,0.061332,40807.0,40795.0,0.4107]
[1646406996359,0.7386,40805.0,40796.0,0.12266007]
[1646406996564,0.0452,40804.0,40798.0,0.061326]
[1646406996764,0.1452,40804.0,40798.0,0.061326]
[1646406997460,0.0452,40804.0,40799.0,0.18393284]
[1646406998265,0.0452,40804.0,40800.0,0.05]
[1646406999663,0.0452,40804.0,40801.0,0.00122971]
[1646406999920,0.77854114,40802.0,40801.0,0.00122971]
[1646407000320,0.77854114,40802.0,40801.0,9.71e-06]
[1646407000321,1.25646457,40802.0,40801.0,9.71e-06]
[1646407000520,1.00166457,40802.0,40801.0,9.71e-06]
[1646407000719,0.26306457,40802.0,40801.0,9.71e-06]
[1646407000917,0.26306457,40802.0,40801.0,0.03587603]
[1646407001318,0.16306457,40802.0,40801.0,0.03587603]
[1646407001517,0.26306457,40802.0,40801.0,0.03587603]
[1646407001922,0.16306457,40802.0,40801.0,0.03587603]
[1646407002118,0.0452,40802.0,40801.0,0.03587603]
[1646407002315,0.0452,40802.0,40801.0,0.08587603]
[1646407002516,0.0452,40809.0,40801.0,0.08587603]
[1646407002916,0.007,40805.0,40801.0,0.08587603]
[1646407003320,0.007,40805.0,40803.0,0.122619]
[1646407003552,0.007,40805.0,40803.0,0.172619]
[1646407004151,0.43163353,40808.0,40803.0,0.172619]
[1646407004752,0.55933343,40808.0,40803.0,0.172619]
[1646407004952,0.1,40808.0,40803.0,0.172619]
[1646407005353,0.1,40808.0,40804.0,0.061309]
[1646407005752,0.38504269,40809.0,40804.0,0.061309]
[1646407005952,0.25852127,40807.0,40804.0,0.061309]
[1646407006552,0.25852127,40807.0,40803.0,0.172619]
[1646407006755,0.25852127,40807.0,40802.0,0.06130831]
[1646407006756,0.7386,40806.0,40802.0,0.06130831]
[1646407007158,1.02304809,40805.0,40802.0,0.06130831]
[1646407007428,0.7386,40803.0,40802.0,0.06130831]
[1646407007620,0.061324,40806.0,40802.0,0.06130831]
[1646407007820,0.1,40803.0,40802.0,0.06130831]
[1646407008218,0.13928819,40803.0,40802.0,0.06130831]
[1646407008423,0.1,40803.0,40801.0,0.08586632]
[1646407008620,0.461331,40802.0,40801.0,0.08586632]
[1646407008819,0.899931,40802.0,40801.0,0.05]
[1646407009019,0.161331,40802.0,40801.0,0.05]
[1646407009220,0.161331,40802.0,40798.0,0.111326]
[1646407009420,0.161331,40802.0,40798.0,0.061326]
[1646407009421,0.03928819,40799.0,40798.0,0.061326]
[1646407009620,0.061323,40800.0,40798.0,0.111326]
[1646407010221,0.1,40802.0,40798.0,0.111326]
[1646407010520,0.3,40808.0,40806.0,0.38972622]
[1646407010720,0.03928819,40807.0,40806.0,0.32841422]
[1646407010921,1.08388819,40807.0,40806.0,0.31710287]
[1646407011154,1.08388819,40807.0,40806.0,0.29210287]
[1646407011757,1.12908819,40807.0,40806.0,0.29210287]
[1646407012160,1.15985805,40807.0,40806.0,0.29210287]
[1646407012361,1.25985805,40807.0,40806.0,0.29210287]
[1646407013359,0.95985805,40807.0,40806.0,0.29210287]
[1646407013958,0.18448819,40807.0,40806.0,0.29210287]
[1646407014158,0.11217605,40807.0,40806.0,0.29210287]
[1646407014359,0.86964134,40807.0,40806.0,0.29210287]
[1646407014561,0.7386,40803.0,40800.0,0.1226472]
[1646407014803,0.7386,40801.0,40800.0,0.1226472]
[1646407015007,0.7386,40801.0,40795.0,0.001]
[1646407015203,0.1,40800.0,40795.0,0.001]
[1646407015404,0.1,40800.0,40796.0,0.06132641]
[1646407015606,0.061328,40802.0,40797.0,0.12265506]
[1646407016204,0.061328,40802.0,40798.0,0.05]
[1646407016405,0.061328,40802.0,40801.0,0.23059293]
[1646407016605,1.00522852,40802.0,40798.0,0.05]
[1646407016803,0.061328,40802.0,40798.0,0.05]
[1646407017005,0.01217605,40799.0,40798.0,0.05]
[1646407017204,0.01217605,40799.0,40798.0,0.04547772]
[1646407017405,0.03546399,40799.0,40798.0,0.04547772]
[1646407017610,0.03546399,40799.0,40795.0,0.12365752]
[1646407017611,0.7386,40798.0,40795.0,0.12365752]
[1646407017806,0.1,40797.0,40795.0,0.12365752]
[1646407018004,0.01182133,40796.0,40795.0,0.12365752]
[1646407018654,0.01182133,40796.0,40795.0,0.001]
[1646407019155,1.17859436,40796.0,40795.0,0.001]
[1646407019557,1.0386,40796.0,40795.0,0.001]
[1646407019956,0.37231813,40796.0,40795.0,0.001]
[1646407020160,0.81091813,40796.0,40795.0,0.001]
[1646407020356,0.91091813,40796.0,40795.0,0.001]
[1646407021358,1.21091813,40796.0,40789.0,0.004965]
[1646407021562,1.21091813,40796.0,40788.0,5e-06]
[1646407021563,0.87859436,40792.0,40788.0,5e-06]
[1646407021761,0.9121038,40790.0,40788.0,5e-06]
[1646407021961,0.9573038,40790.0,40788.0,5e-06]
[1646407022159,0.091168,40789.0,40788.0,5e-06]
[1646407022403,0.829768,40789.0,40787.0,0.12269444]
[1646407022808,0.10047995,40790.0,40787.0,0.18403825]
[1646407022809,0.0452,40790.0,40787.0,0.18403825]
[1646407023005,0.0492,40794.0,40787.0,0.22903825]
[1646407023606,0.0492,40794.0,40787.0,0.16769444]
[1646407023806,1.44810868,40794.0,40787.0,0.29036744]
[1646407024006,0.0129269,40793.0,40787.0,0.16669444]
[1646407024307,0.7838,40792.0,40787.0,0.11669444]
[1646407024706,0.7386,40790.0,40787.0,0.11669444]
[1646407024905,0.98804625,40788.0,40787.0,0.11669444]
[1646407025106,1.03324625,40788.0,40787.0,0.11669444]
[1646407025312,0.21753855,40788.0,40787.0,0.002]
[1646407026168,0.43435307,40788.0,40787.0,0.002]
[1646407026369,3.33633501,40788.0,40787.0,0.001]
[1646407026566,3.43633501,40788.0,40787.0,0.001]
[1646407026767,3.14718194,40788.0,40787.0,0.001]
[1646407027167,0.1450857,40788.0,40787.0,0.001]
[1646407027368,0.1950857,40788.0,40787.0,0.001]
[1646407027766,0.0950857,40788.0,40787.0,0.001]
[1646407028069,0.1950857,40788.0,40787.0,0.001]
[1646407028867,0.0950857,40788.0,40787.0,0.001]
[1646407029167,0.061349,40790.0,40787.0,0.001]
[1646407029369,0.7386,40789.0,40787.0,0.001]
[1646407029806,0.6513434,40789.0,40787.0,0.001]
[1646407030010,0.061349,40790.0,40787.0,0.001]
[1646407030207,2.02501405,40788.0,40787.0,0.001]
[1646407030408,2.76361405,40788.0,40787.0,0.001]
[1646407030612,2.86361405,40788.0,40787.0,0.001]
[1646407030811,3.00360841,40788.0,40787.0,0.001]
[1646407031008,2.97654022,40788.0,40787.0,0.001]
[1646407031610,2.97654022,40788.0,40781.0,0.004]
[1646407031814,2.97654022,40788.0,40779.0,0.001]
[1646407031815,0.81096075,40784.0,40772.0,0.001]
[1646407032009,0.15,40785.0,40772.0,0.001]
[1646407032010,0.7386,40779.0,40772.0,0.001]
[1646407032208,0.0723723,40777.0,40772.0,0.001]
[1646407032408,0.50183545,40778.0,40772.0,0.001]
[1646407032409,0.77036725,40773.0,40772.0,0.001]
[1646407032610,0.74319495,40773.0,40772.0,0.001]
[1646407032911,0.91556192,40773.0,40772.0,0.001]
[1646407033311,0.91556192,40773.0,40770.0,0.0001]
[1646407033557,0.91790651,40771.0,40770.0,0.0001]
[1646407033758,0.69799495,40771.0,40770.0,0.0001]
[1646407033962,0.122743,40772.0,40770.0,0.0001]
[1646407034160,0.0452,40771.0,40770.0,0.0001]
[1646407034360,0.18519436,40771.0,40770.0,0.0001]
[1646407034962,0.92379436,40771.0,40770.0,0.0001]
[1646407035161,0.18519436,40771.0,40770.0,0.0001]
[1646407035363,0.18519436,40771.0,40766.0,0.062372]
[1646407035364,0.18519436,40771.0,40766.0,0.001]
[1646407035565,0.72041606,40771.0,40762.0,0.002]
[1646407035768,0.28520698,40763.0,40762.0,0.002]
[1646407035963,0.16562179,40765.0,40764.0,0.26136215]
[1646407036164,0.0452,40767.0,40764.0,0.26136215]
[1646407036762,0.25807616,40765.0,40764.0,0.26136215]
[1646407036963,0.99667616,40765.0,40764.0,0.26136215]
[1646407037161,0.7386,40765.0,40764.0,0.26136215]
[1646407037417,0.003,40768.0,40764.0,0.31136215]
[1646407037622,0.003,40768.0,40766.0,0.26240475]
[1646407037623,0.061383,40767.0,40766.0,0.26240475]
[1646407037917,0.799983,40767.0,40764.0,0.31136215]
[1646407038327,0.061383,40767.0,40764.0,0.31136215]
[1646407038721,0.122729,40777.0,40764.0,0.31136215]
[1646407038722,0.061356,40772.0,40767.0,0.061358]
[1646407038923,0.061356,40772.0,40767.0,0.056358]
[1646407039120,0.007,40771.0,40767.0,0.056358]
[1646407039519,0.007,40771.0,40765.0,0.34198277]
[1646407039727,0.007,40771.0,40754.0,0.20015632]
[1646407039728,0.07036855,40767.0,40754.0,0.20015632]
[1646407039925,1.42448,40769.0,40746.0,0.003]
[1646407039926,0.061404,40762.0,40746.0,0.003]
[1646407040125,0.7386,40752.0,40746.0,0.003]
[1646407040322,0.7386,40750.0,40746.0,0.003]
[1646407040521,0.7386,40750.0,40746.0,0.00103103]
[1646407040522,0.28191096,40749.0,40746.0,0.00103103]
[1646407040723,0.1,40749.0,40746.0,0.00103103]
[1646407040928,0.8386,40749.0,40746.0,0.00103103]
[1646407041160,0.7386,40749.0,40745.0,0.06200067]
[1646407041357,0.061404,40751.0,40745.0,0.12339967]
[1646407041757,0.31381666,40750.0,40745.0,0.12339967]
[1646407041955,0.061404,40751.0,40745.0,0.17339967]
[1646407042160,0.04786477,40751.0,40745.0,0.17339967]
[1646407042763,0.04786477,40751.0,40747.0,0.28988086]
[1646407042960,0.34890897,40751.0,40745.0,0.11200067]
[1646407043758,0.41030497,40751.0,40745.0,0.11200067]
[1646407043958,0.10926077,40751.0,40745.0,0.11200067]
[1646407044162,2.04079106,40749.0,40745.0,0.11200067]
[1646407044360,2.04079106,40749.0,40745.0,0.051]
[1646407044361,0.7386,40747.0,40745.0,0.051]
[1646407044660,0.4,40748.0,40745.0,0.001]
[1646407044661,0.7386,40746.0,40745.0,0.001]
[1646407045115,0.87859436,40746.0,40745.0,0.001]
[1646407045317,1.1386,40746.0,40745.0,0.001]
[1646407045518,0.7386,40744.0,40740.0,0.001]
[1646407045714,0.7386,40742.0,40735.0,0.001]
[1646407045915,0.7386,40740.0,40735.0,0.001]
[1646407046120,1.0838,40740.0,40735.0,0.001]
[1646407046315,0.7386,40738.0,40735.0,0.001]
[1646407046517,0.9967399,40738.0,40735.0,0.001]
[1646407046817,0.2581399,40738.0,40735.0,0.001]
[1646407047016,1.0581589,40738.0,40735.0,0.001]
[1646407047419,0.7386,40736.0,40731.0,0.008]
[1646407047618,0.87859436,40732.0,40731.0,0.008]
[1646407047817,0.7386,40732.0,40731.0,0.008]
[1646407048016,0.7386,40732.0,40728.0,0.001]
[1646407048017,0.80003,40732.0,40728.0,0.001]
[1646407048218,1.04642908,40729.0,40728.0,0.001]
[1646407048417,0.061429,40730.0,40728.0,0.001]
[1646407049260,0.06099868,40730.0,40728.0,0.001]
[1646407049461,0.79959868,40730.0,40728.0,0.001]
[1646407050061,0.06099868,40730.0,40728.0,0.001]
[1646407050462,0.7386,40729.0,40726.0,0.05]
[1646407050768,0.7386,40727.0,40722.0,0.021]
[1646407050969,0.7386,40727.0,40713.0,0.4097]
[1646407050970,0.7386,40722.0,40713.0,0.4097]
[1646407051271,0.361445,40726.0,40710.0,0.01]
[1646407051272,0.7386,40718.0,40710.0,0.01]
[1646407051473,0.3,40717.0,40711.0,0.22826736]
[1646407051662,0.1,40717.0,40711.0,0.22826736]
[1646407051866,0.0452,40719.0,40712.0,0.3]
[1646407052065,0.0452,40719.0,40713.0,0.061439]
[1646407052320,0.0452,40719.0,40712.0,0.12287661]
[1646407052723,0.0452,40719.0,40713.0,0.06143787]
[1646407052920,0.122886,40716.0,40713.0,0.06143787]
[1646407053118,0.122886,40716.0,40714.0,0.17455082]
[1646407053321,0.122886,40716.0,40713.0,0.05643787]
[1646407053926,0.122886,40716.0,40713.0,0.05143787]
[1646407054120,0.122886,40716.0,40713.0,0.05]
[1646407054922,0.122886,40716.0,40713.0,0.11143774]
[1646407055121,0.061442,40718.0,40715.0,0.366663]
[1646407055323,0.061442,40718.0,40717.0,0.516663]
[1646407055521,0.061442,40718.0,40717.0,0.5]
[1646407055721,0.061442,40718.0,40717.0,0.22448]
[1646407055923,0.0192207,40718.0,40717.0,0.05]
[1646407056157,0.0192207,40718.0,40715.0,0.29087774]
[1646407056757,0.0192207,40718.0,40717.0,0.20156609]
[1646407057158,0.0192207,40718.0,40715.0,0.44087774]
[1646407057759,0.0192207,40718.0,40716.0,0.02448]
[1646407057959,0.0192207,40718.0,40715.0,0.29087774]
[1646407058358,0.0142207,40718.0,40715.0,0.29087774]
[1646407058863,0.0142207,40718.0,40717.0,0.31184775]
[1646407059067,0.58577833,40730.0,40717.0,0.31184775]
[1646407059068,0.2568707,40735.0,40719.0,0.02448]
[1646407059262,0.03599557,40740.0,40723.0,0.15]
[1646407059263,0.01108085,40733.0,40723.0,0.15]
[1646407059460,0.01047714,40732.0,40720.0,0.15]
[1646407059661,0.22001982,40737.0,40731.0,0.27630135]
[1646407059915,0.25626482,40735.0,40731.0,0.32630135]
[1646407060115,0.245679,40735.0,40731.0,0.32630135]
[1646407060316,0.43502558,40739.0,40732.0,0.21142002]
[1646407060317,0.01218758,40739.0,40732.0,0.21142002]
[1646407060516,0.01058319,40741.0,40735.0,0.15]
[1646407060715,0.05,40748.0,40742.0,0.25371648]
[1646407060915,0.061395,40752.0,40740.0,0.02448]
[1646407060916,0.122787,40744.0,40740.0,0.02448]
[1646407061112,0.122787,40744.0,40741.0,0.391143]
[1646407061417,0.061393,40744.0,40742.0,0.085871]
[1646407061615,0.061393,40744.0,40741.0,0.05]
[1646407061812,0.061393,40744.0,40740.0,0.23417208]
[1646407062015,0.061393,40744.0,40740.0,0.05]
[1646407062213,0.061393,40744.0,40738.0,0.05]
[1646407062414,0.2955762,40740.0,40739.0,0.06140121]
[1646407062613,0.2955762,40740.0,40733.0,0.12280242]
[1646407062816,0.061419,40737.0,40725.0,0.71978]
[1646407063013,0.061419,40737.0,40718.0,0.5923]
[1646407063014,0.80002,40736.0,40718.0,0.5923]
[1646407063216,0.01441205,40739.0,40714.0,0.2361]
[1646407063217,0.22421778,40726.0,40714.0,0.2361]
[1646407063414,0.22421778,40726.0,40713.0,0.24564642]
[1646407063666,0.22421778,40726.0,40717.0,0.06143525]
[1646407063667,0.24848053,40720.0,40717.0,0.06143525]
[1646407063864,0.24848053,40720.0,40713.0,0.24064642]
[1646407063865,0.24848053,40720.0,40713.0,0.26512642]
[1646407064064,0.0452,40725.0,40713.0,0.24064642]
[1646407064295,0.0452,40725.0,40710.0,0.01]
[1646407064296,0.061442,40719.0,40710.0,0.01]
[1646407064470,0.061442,40719.0,40699.0,0.172994]
[1646407064471,1.4,40717.0,40699.0,0.172994]
[1646407064667,0.7386,40709.0,40699.0,0.172994]
[1646407064968,0.15,40710.0,40694.0,0.001]
[1646407064969,0.7386,40697.0,40694.0,0.001]
[1646407065269,0.97605462,40695.0,40694.0,0.001]
[1646407065472,0.3345478,40696.0,40689.0,0.001]
[1646407065473,0.38450391,40696.0,40689.0,0.05847935]
[1646407065866,0.38450391,40696.0,40687.0,0.001]
[1646407065867,0.01088029,40695.0,40687.0,0.001]
[1646407066065,0.38450391,40696.0,40687.0,0.001]
[1646407066265,0.06795441,40692.0,40687.0,0.001]
[1646407066470,0.06795441,40692.0,40684.0,0.041694]
[1646407066471,0.7386,40690.0,40684.0,0.041694]
[1646407066666,0.7386,40688.0,40681.0,0.01]
[1646407066869,0.3452,40687.0,40681.0,0.01]
[1646407067066,0.2145327,40686.0,40677.0,0.33637982]
[1646407067328,0.00430266,40677.0,40650.0,1.50137481]
[1646407067526,0.00430266,40677.0,40632.0,0.20231523]
[1646407067527,0.14637474,40658.0,40632.0,0.20231523]
[1646407067726,0.14637474,40658.0,40634.0,0.07200673]
[1646407067727,0.336186,40647.0,40634.0,0.07200673]
[1646407067929,0.336186,40647.0,40624.0,0.01361819]
[1646407067930,0.3,40646.0,40624.0,0.01361819]
[1646407068130,0.3,40646.0,40609.0,0.29986063]
[1646407068131,0.15,40636.0,40609.0,0.29986063]
[1646407068330,0.15,40636.0,40599.0,0.22984942]
[1646407068331,1.4,40616.0,40601.0,3.66338468]
[1646407068527,0.206415,40598.0,40592.0,0.16893042]
[1646407068729,0.206415,40598.0,40582.0,0.20006047]
[1646407068730,0.206415,40597.0,40582.0,0.20006047]
[1646407068925,0.206415,40597.0,40589.0,0.008708]
[1646407068926,0.240455,40597.0,40589.0,0.008708]
[1646407069129,0.01146,40606.0,40594.0,0.15]
[1646407069328,0.184862,40620.0,40592.0,4.04030376]
[1646407069329,0.23874,40615.0,40608.0,0.23132677]
[1646407069530,0.0452,40623.0,40616.0,1.4]
[1646407069725,0.585765,40648.0,40617.0,0.66859]
[1646407069930,0.585765,40648.0,40538.0,3.2140207]
[1646407070126,0.3,40643.0,40612.0,0.26109481]
[1646407070326,0.3,40643.0,40585.0,1.99548]
[1646407070327,0.6,40634.0,40618.0,0.00568582]
[1646407070528,0.39281,40646.0,40602.0,0.01446231]
[1646407070529,0.017295,40632.0,40602.0,0.01446231]
[1646407070727,0.03617016,40640.0,40602.0,0.01446231]
[1646407070728,0.01217555,40635.0,40607.0,0.43884789]
[1646407070926,0.31298409,40639.0,40618.0,0.3]
[1646407071185,0.061571,40640.0,40620.0,0.25343772]
[1646407071380,0.136571,40657.0,40644.0,0.001]
[1646407071581,0.49141051,40672.0,40645.0,0.118331]
[1646407071582,0.03641283,40658.0,40645.0,0.118331]
[1646407071779,0.02448,40672.0,40662.0,0.0608506]
[1646407071780,0.05028591,40666.0,40662.0,0.0608506]
[1646407071980,0.051148,40677.0,40644.0,0.001]
[1646407071981,0.03724641,40673.0,40670.0,0.35]
[1646407072184,0.7345,40694.0,40672.0,0.5647]
[1646407072185,0.198075,40691.0,40672.0,0.5647]
[1646407072382,0.55913865,40682.0,40679.0,0.5647]
[1646407072580,0.55913865,40682.0,40680.0,0.413128]
[1646407072781,0.2001,40685.0,40682.0,0.367928]
[1646407072982,0.2001,40685.0,40682.0,0.0452]
[1646407073181,0.05,40703.0,40684.0,0.367917]
[1646407073379,0.22876134,40698.0,40684.0,0.0452]
[1646407073580,0.136571,40690.0,40684.0,0.0452]
[1646407073782,0.367917,40685.0,40680.0,0.05]
[1646407074084,0.2499,40691.0,40656.0,0.65869108]
[1646407074085,0.136571,40679.0,40656.0,0.65869108]
[1646407074281,0.35981939,40678.0,40657.0,0.5229]
[1646407074479,0.57193948,40677.0,40662.0,0.26205317]
[1646407074685,0.136571,40671.0,40642.0,0.123007]
[1646407074926,0.136571,40671.0,40627.0,0.5215]
[1646407074927,0.701271,40643.0,40620.0,6.627e-05]
[1646407075126,0.15,40651.0,40620.0,6.627e-05]
[1646407075127,0.5647,40633.0,40620.0,6.627e-05]
[1646407075324,0.367917,40631.0,40620.0,6.627e-05]
[1646407075524,0.05,40627.0,40621.0,0.367917]
[1646407075730,0.05,40627.0,40620.0,6.627e-05]
[1646407075731,0.0452,40626.0,40623.0,0.367917]
[1646407075925,0.04589852,40633.0,40625.0,0.00246272]
[1646407076130,0.34624546,40642.0,40622.0,0.4679516]
[1646407076131,0.05114546,40642.0,40626.0,0.367917]
[1646407076327,0.05114546,40642.0,40632.0,0.367917]
[1646407076724,0.161537,40665.0,40629.0,0.12307249]
[1646407076725,0.0952,40651.0,40636.0,0.367917]
[1646407076926,0.05,40651.0,40635.0,0.18712008]
[1646407077130,0.0452,40657.0,40642.0,0.367917]
[1646407077329,0.186571,40653.0,40643.0,0.367917]
[1646407077526,0.186571,40653.0,40638.0,0.001]
[1646407077527,0.01194593,40652.0,40638.0,0.001]
[1646407077726,0.68170188,40642.0,40638.0,0.001]
[1646407077924,0.68275973,40642.0,40638.0,0.001]
[1646407078329,0.68275973,40642.0,40619.0,0.42310313]
[1646407078600,0.136571,40629.0,40608.0,0.3]
[1646407078796,0.367917,40622.0,40620.0,6.27e-06]
[1646407078997,0.68000875,40621.0,40620.0,6.27e-06]
[1646407079195,0.367917,40619.0,40607.0,0.50082548]
[1646407079498,0.136571,40616.0,40607.0,0.00082548]
[1646407079801,0.45,40618.0,40587.0,0.367917]
[1646407079802,0.25172542,40597.0,40587.0,0.367917]
[1646407080001,0.0122257,40596.0,40586.0,0.008708]
[1646407080303,0.01307934,40622.0,40597.0,0.231625]
[1646407080500,0.05,40617.0,40598.0,0.563422]
[1646407080700,0.136571,40620.0,40598.0,0.263422]
[1646407080901,0.20437742,40613.0,40600.0,0.368232]
[1646407081096,0.02715161,40625.0,40600.0,0.368232]
[1646407081097,0.3,40612.0,40600.0,0.368232]
[1646407081296,0.15,40614.0,40600.0,0.368232]
[1646407081501,0.286571,40607.0,40600.0,0.368232]
[1646407081700,0.1952,40620.0,40601.0,0.263408]
[1646407081701,0.01276347,40606.0,40601.0,0.263408]
[1646407081900,0.05,40616.0,40601.0,0.263408]
[1646407082097,0.02715161,40625.0,40594.0,0.232625]
[1646407082098,0.3452,40622.0,40603.0,0.368208]
[1646407082309,0.02715161,40625.0,40603.0,0.367208]
[1646407082310,0.01185128,40618.0,40603.0,0.367208]
[1646407082616,0.3,40621.0,40603.0,0.367208]
[1646407082617,0.0105669,40617.0,40603.0,0.367208]
[1646407082810,0.0105669,40617.0,40594.0,0.001]
[1646407082811,0.31486324,40621.0,40595.0,0.368331]
[1646407083012,0.136571,40602.0,40594.0,0.001]
[1646407083212,0.01366224,40600.0,40594.0,0.001]
[1646407083509,0.146581,40602.0,40594.0,0.001]
[1646407083709,0.136571,40597.0,40594.0,0.001]
[1646407083910,0.04,40600.0,40594.0,0.001]
[1646407084109,0.04,40600.0,40595.0,0.368331]
[1646407084310,0.01376887,40607.0,40595.0,0.368331]
[1646407084511,0.05,40611.0,40599.0,0.25637819]
[1646407084713,0.05,40611.0,40600.0,0.49778319]
[1646407084908,0.136571,40611.0,40599.0,0.00011256]
[1646407085109,0.136571,40604.0,40599.0,0.00011256]
[1646407085314,0.3,40603.0,40599.0,0.00011256]
[1646407085508,0.436571,40610.0,40600.0,0.368331]
[1646407085709,0.24031853,40607.0,40600.0,0.368331]
[1646407085910,0.01015149,40608.0,40599.0,0.00011256]
[1646407086168,0.31003023,40612.0,40603.0,0.17401281]
[1646407086369,0.136571,40616.0,40603.0,0.17401281]
[1646407086370,0.136571,40616.0,40604.0,0.262302]
[1646407086562,0.136571,40616.0,40604.0,0.312302]
[1646407086764,0.24683702,40617.0,40606.0,0.27528231]
[1646407086966,0.01285924,40619.0,40618.0,0.31646798]
[1646407086967,0.00115383,40619.0,40618.0,0.31646798]
[1646407087164,0.01076528,40628.0,40618.0,0.57854198]
[1646407087365,0.01076528,40628.0,40612.0,0.1]
[1646407087366,0.136571,40624.0,40612.0,0.1]
[1646407087561,0.136571,40624.0,40607.0,0.05]
[1646407087762,0.136571,40624.0,40610.0,0.1]
[1646407087967,0.02603,40625.0,40611.0,0.368331]
[1646407088264,3e-05,40625.0,40622.0,0.27888395]
[1646407088466,3e-05,40625.0,40623.0,0.392401]
[1646407088665,0.01132396,40638.0,40623.0,0.392401]
[1646407088666,0.01132396,40638.0,40625.0,0.02448]
[1646407088865,0.67159146,40642.0,40632.0,0.02448]
[1646407089065,0.67159146,40642.0,40624.0,1.55122846]
[1646407089066,0.67159146,40642.0,40638.0,0.02448]
[1646407089262,0.67159146,40642.0,40640.0,0.02448]
[1646407089462,0.67159146,40642.0,40641.0,0.36774]
[1646407089663,0.67159146,40642.0,40641.0,0.41774]
[1646407089918,9.146e-05,40642.0,40641.0,0.41774]
[1646407090522,9.146e-05,40642.0,40641.0,0.61946535]
[1646407090919,9.146e-05,40642.0,40641.0,0.66466535]
[1646407091221,9.146e-05,40642.0,40641.0,0.05]
[1646407091420,0.52980641,40642.0,40625.0,0.5647]
[1646407091618,0.136571,40639.0,40631.0,0.05]
[1646407091921,0.136571,40639.0,40633.0,0.261575]
[1646407092116,0.136571,40639.0,40632.0,0.0452]
[1646407092320,0.368286,40632.0,40609.0,0.24619173]
[1646407092520,0.368286,40632.0,40610.0,0.02448]
[1646407092521,0.136571,40623.0,40610.0,0.02448]
[1646407092719,0.31415188,40622.0,40605.0,0.00097563]
[1646407092918,0.05,40623.0,40605.0,0.00097563]
[1646407093123,0.05,40615.0,40614.0,0.58929822]
[1646407093579,0.01348008,40618.0,40610.0,0.02448]
[1646407093778,0.01348008,40618.0,40605.0,0.00097563]
[1646407094078,0.05,40619.0,40606.0,0.368286]
[1646407094278,0.35,40622.0,40605.0,0.00097563]
[1646407094478,0.01457705,40619.0,40608.0,0.02448]
[1646407094680,0.186571,40623.0,40616.0,0.02448]
[1646407094880,0.186571,40623.0,40615.0,0.368201]
[1646407094881,0.186571,40623.0,40617.0,0.261895]
[1646407095082,0.05,40623.0,40617.0,0.261895]
[1646407095280,0.24865362,40620.0,40617.0,0.46859585]
[1646407095479,0.05,40623.0,40617.0,0.311895]
[1646407095896,0.05,40623.0,40618.0,0.02448]
[1646407096082,0.05,40623.0,40621.0,0.261868]
[1646407096285,0.05,40627.0,40621.0,0.60880408]
[1646407096497,0.05,40627.0,40622.0,0.19499926]
[1646407096686,0.131571,40635.0,40623.0,0.392604]
[1646407097184,0.05,40638.0,40633.0,0.27942298]
[1646407097436,0.28166246,40642.0,40633.0,0.27942298]
[1646407097735,0.28166246,40642.0,40634.0,0.668286]
[1646407097736,9.146e-05,40642.0,40634.0,0.668286]
[1646407097933,0.00017003,40643.0,40636.0,0.85]
[1646407098237,0.00017003,40643.0,40641.0,0.26145]
[1646407098436,0.00017003,40643.0,40642.0,0.6380945]
[1646407098934,0.00017003,40643.0,40642.0,0.2698865]
[1646407099132,0.00017003,40643.0,40642.0,0.6626525]
[1646407099535,0.431571,40660.0,40644.0,0.02448]
[1646407099734,0.50889543,40664.0,40651.0,0.02448]
[1646407099735,0.3,40663.0,40651.0,0.02448]
[1646407099933,0.3,40663.0,40644.0,0.0452]
[1646407099934,0.3,40663.0,40652.0,0.261291]
[1646407100134,0.3,40663.0,40652.0,0.285771]
[1646407100334,0.4944,40664.0,40654.0,0.368163]
[1646407100539,0.05,40666.0,40651.0,0.7386]
[1646407100741,0.131571,40671.0,40656.0,0.06151618]
[1646407100934,0.193079,40676.0,40658.0,0.1454]
[1646407101168,3.36876176,40685.0,40657.0,0.368146]
[1646407101169,0.131571,40678.0,40661.0,0.02448]
[1646407101367,0.131571,40678.0,40660.0,0.18449283]
[1646407101368,0.15,40676.0,40663.0,0.02448]
[1646407101568,0.67140449,40661.0,40654.0,0.0452]
[1646407101770,0.67140449,40661.0,40642.0,0.716625]
[1646407101771,0.3,40660.0,40651.0,0.0452]
[1646407101966,0.131571,40659.0,40650.0,0.0655282]
[1646407102166,0.131571,40659.0,40654.0,0.02448]
[1646407102369,0.67140449,40661.0,40653.0,0.18452161]